bitfinex-derivatives/quotes_ETHF0:USTF0_20250910
["timestamp","ask_amount","ask_price","bid_price","bid_amount"]
[1757525553702,0.3146,4353.2,4352.2,10.9317]
[1757525553901,0.5636,4353.2,4352.3,0.249]
[1757525554104,0.5636,4353.2,4352.3,0.66251]
[1757525554397,0.249,4353.2,4352.6,0.3239]
[1757525554602,0.249,4353.2,4352.7,3.62127]
[1757525554799,0.249,4353.2,4352.8,0.3239]
[1757525555097,0.5636,4353.7,4352.9,0.3239]
[1757525555294,0.249,4353.7,4352.7,3.4568]
[1757525555495,0.3146,4353.6,4352.7,3.4568]
[1757525555695,0.1277,4353.5,4352.7,3.7807]
[1757525555896,0.3146,4353.6,4352.8,0.3239]
[1757525558203,0.3146,4353.6,4352.9,0.249]
[1757525558402,0.3146,4354.7,4353.7,0.3239]
[1757525558703,0.3146,4354.2,4353.5,0.25]
[1757525559096,3.2078,4354.3,4353.6,7.4]
[1757525559296,0.3146,4354.2,4353.6,7.4]
[1757525559501,0.3146,4354.2,4353.8,3.2078]
[1757525559804,0.1277,4354.5,4353.9,0.3239]
[1757525559997,0.3146,4354.4,4353.9,0.3239]
[1757525560192,0.3146,4354.2,4353.6,7.4]
[1757525560398,0.3146,4354.2,4353.4,0.5739]
[1757525560399,0.3146,4354.2,4353.4,0.25]
[1757525560704,0.5646,4354.2,4353.4,0.25]
[1757525560906,0.3146,4354.1,4353.5,7.7239]
[1757525561206,0.3146,4354.1,4353.5,7.8421]
[1757525562509,3.2078,4354.3,4353.6,0.3239]
[1757525563210,0.3146,4354.5,4353.9,0.3239]
[1757525563907,0.3146,4354.5,4353.9,0.5729]
[1757525565301,0.3146,4354.5,4354.1,0.3239]
[1757525565508,3.2078,4354.9,4354.1,0.3239]
[1757525565707,0.3146,4354.8,4353.8,3.2078]
[1757525565908,0.3146,4354.8,4353.9,0.249]
[1757525566110,0.5636,4354.8,4353.9,0.249]
[1757525566406,0.3146,4354.8,4354.3,0.41331]
[1757525566602,3.2078,4354.9,4354.3,3.2078]
[1757525566807,3.2078,4354.9,4354.5,0.3239]
[1757525567112,0.3146,4355.2,4354.6,0.73718]
[1757525567304,3.5224,4355.4,4354.7,0.41327]
[1757525567499,3.5224,4355.4,4355.0,0.4421]
[1757525567699,3.5224,4355.4,4354.7,0.249]
[1757525567700,3.2078,4355.4,4355.1,0.3239]
[1757525568002,3.2078,4355.4,4354.9,0.3239]
[1757525568201,3.2078,4355.4,4354.8,3.2078]
[1757525568705,0.3146,4355.3,4354.8,3.2078]
[1757525568902,0.3146,4355.8,4354.9,0.3239]
[1757525569303,0.3146,4355.8,4355.0,0.1182]
[1757525571003,0.3146,4355.8,4355.1,0.3239]
[1757525572805,0.3146,4355.8,4355.2,0.3239]
[1757525573004,0.3146,4355.8,4355.2,0.41322]
[1757525573204,3.4568,4355.9,4355.4,0.3239]
[1757525573404,3.2078,4355.9,4355.6,0.3239]
[1757525573599,3.2078,4355.9,4355.5,0.1182]
[1757525573811,3.5224,4355.9,4355.5,0.1182]
[1757525574011,3.5224,4355.9,4355.6,0.3239]
[1757525574312,0.3146,4356.3,4355.7,0.3239]
[1757525575305,0.22957,4356.2,4355.3,3.5317]
[1757525575510,0.3146,4355.4,4355.3,3.2078]
[1757525576010,0.3146,4355.4,4355.3,10.6078]
[1757525577504,0.3146,4355.4,4355.3,10.9198]
[1757525577810,0.3146,4355.4,4355.0,0.248]
[1757525578116,0.3107,4355.4,4355.0,0.248]
[1757525578614,0.1277,4355.5,4355.0,0.56]
[1757525578800,0.3107,4355.4,4355.0,0.312]
[1757525579005,3.5185,4355.4,4354.8,7.4]
[1757525579209,0.3107,4354.9,4354.8,7.4]
[1757525579407,3.5185,4354.9,4354.2,3.4548]
[1757525579603,3.4548,4354.9,4353.7,3.5198]
[1757525579902,0.3107,4354.8,4353.8,7.647]
[1757525580306,3.4548,4354.9,4353.8,7.647]
[1757525580506,0.3107,4354.7,4353.8,7.4]
[1757525580710,0.3107,4354.2,4353.7,3.2078]
[1757525580914,3.2078,4354.3,4353.7,3.2078]
[1757525581207,3.5185,4354.3,4353.7,3.2078]
[1757525581804,0.3107,4354.2,4353.7,3.2078]
[1757525582413,0.3107,4354.2,4353.2,0.312]
[1757525583012,0.3107,4353.6,4353.0,3.2078]
[1757525583207,3.2078,4353.7,4353.0,3.2078]
[1757525583208,0.3698,4353.5,4353.0,3.2078]
[1757525583408,0.3107,4353.4,4353.0,3.2078]
[1757525583609,0.3698,4353.5,4353.0,3.2078]
[1757525583902,0.3107,4353.4,4353.0,3.2078]
[1757525584110,0.3698,4353.5,4353.0,3.2078]
[1757525584509,0.3107,4353.4,4352.6,0.312]
[1757525584809,0.54042,4353.4,4352.4,3.2078]
[1757525585010,0.3698,4353.5,4352.4,3.2078]
[1757525585211,0.22973,4353.4,4352.4,3.2078]
[1757525585616,0.22973,4353.3,4352.4,3.2078]
[1757525585811,0.22973,4353.4,4352.4,3.2078]
[1757525586015,3.2078,4352.9,4352.1,0.312]
[1757525586213,0.3107,4352.8,4352.1,0.312]
[1757525588715,3.4548,4352.9,4351.5,0.1294]
[1757525588716,0.3107,4352.1,4351.5,0.4414]
[1757525588909,0.3107,4352.1,4351.3,3.2078]
[1757525588910,0.4335,4352.0,4351.4,0.312]
[1757525590617,0.3107,4352.0,4351.6,0.312]
[1757525590814,0.246,4352.1,4351.5,0.1294]
[1757525591121,0.246,4352.1,4351.6,0.312]
[1757525592519,0.246,4352.1,4351.5,0.1294]
[1757525592708,0.246,4352.1,4351.6,0.312]
[1757525592907,0.5567,4352.1,4351.6,0.312]
[1757525593118,0.246,4352.1,4351.5,0.1294]
[1757525593412,3.2078,4352.2,4351.5,0.1294]
[1757525593612,3.2078,4352.2,4351.6,0.312]
[1757525594120,3.2078,4352.2,4352.0,0.1294]
[1757525594320,3.2078,4352.2,4352.1,0.312]
[1757525595020,0.3107,4352.1,4351.5,0.4414]
[1757525595413,0.3107,4352.1,4352.0,0.723]
[1757525595615,0.5276,4352.1,4352.0,0.723]
[1757525596115,0.742,4352.1,4351.6,0.312]
[1757525596319,0.3107,4352.1,4351.5,0.4414]
[1757525596519,0.2169,4351.6,4351.5,0.8524]
[1757525597725,3.2078,4352.2,4351.5,0.1294]
[1757525598316,0.3107,4352.1,4351.6,0.312]
[1757525598518,0.742,4351.7,4351.1,0.312]
[1757525598726,0.1228,4352.0,4351.1,0.312]
[1757525598727,0.742,4351.2,4351.1,0.1994]
[1757525598911,0.742,4351.2,4351.1,0.723]
[1757525599720,0.5567,4351.6,4351.2,0.312]
[1757525599924,0.6773,4351.6,4351.5,0.1994]
[1757525600521,0.988,4351.6,4351.5,0.1994]
[1757525602222,0.7736,4351.9,4351.8,0.411]
[1757525602424,0.988,4351.9,4351.8,0.1994]
[1757525602625,0.988,4351.9,4350.9,0.312]
[1757525602823,0.2169,4351.0,4350.9,0.5114]
[1757525603121,0.5276,4351.0,4350.9,0.723]
[1757525603321,0.742,4351.0,4350.9,0.1994]
[1757525603624,0.5567,4351.4,4350.9,0.411]
[1757525603828,0.7736,4351.4,4351.3,0.723]
[1757525605213,0.988,4351.4,4351.3,0.411]
[1757525605424,0.3107,4351.3,4350.8,3.5198]
[1757525605622,0.742,4350.9,4350.8,3.7192]
[1757525606515,0.742,4350.9,4350.8,3.9308]
[1757525607122,3.9498,4350.9,4349.5,3.3372]
[1757525607323,0.295,4350.8,4350.0,0.4299]
[1757525607525,0.4958,4350.1,4350.0,0.837]
[1757525608129,0.2008,4350.1,4350.0,0.837]
[1757525608915,0.295,4350.8,4350.1,0.3005]
[1757525609115,0.4958,4350.2,4350.1,0.7076]
[1757525609322,0.7088,4350.2,4350.1,0.7076]
[1757525609722,0.2008,4350.1,4350.0,0.1979]
[1757525609929,0.7088,4350.1,4350.0,0.1979]
[1757525610226,0.7088,4350.1,4350.0,0.4984]
[1757525610427,0.7088,4350.1,4350.0,0.7076]
[1757525610824,0.4138,4350.1,4350.0,0.7076]
[1757525611023,0.246,4350.3,4350.2,0.4071]
[1757525611328,0.246,4350.3,4350.2,0.7076]
[1757525611527,0.4468,4350.3,4350.2,0.7076]
[1757525612322,0.7418,4350.3,4350.2,0.7076]
[1757525612724,0.4468,4350.3,4350.2,0.7076]
[1757525613331,0.4468,4350.3,4348.9,0.59647122]
[1757525613332,0.295,4349.4,4348.3,0.3005]
[1757525613631,3.5028,4348.9,4348.3,0.3005]
[1757525613825,0.295,4348.7,4348.2,0.3005]
[1757525614031,0.295,4348.7,4348.0,3.2078]
[1757525614528,0.295,4348.7,4348.0,3.6347]
[1757525614725,0.295,4348.7,4348.0,3.5083]
[1757525615226,0.295,4348.6,4348.0,3.2078]
[1757525615525,0.295,4348.6,4348.0,3.3342]
[1757525615727,0.295,4348.7,4348.1,0.3005]
[1757525616525,0.246,4348.6,4348.1,0.3005]
[1757525616730,3.2078,4348.9,4348.1,0.3005]
[1757525616929,3.2078,4348.9,4348.2,0.3005]
[1757525617429,3.5028,4348.9,4348.2,0.3005]
[1757525618031,3.2078,4348.9,4348.5,0.1264]
[1757525618324,3.2078,4348.9,4348.6,0.3005]
[1757525618526,0.246,4349.2,4348.6,0.3005]
[1757525619031,0.295,4348.9,4348.0,3.3342]
[1757525619232,0.295,4348.9,4348.1,0.3005]
[1757525619530,3.2078,4349.4,4348.2,0.3005]
[1757525619531,0.295,4349.3,4348.2,0.3005]
[1757525619732,0.246,4349.0,4348.2,0.3005]
[1757525619927,0.246,4349.0,4348.5,0.1264]
[1757525620133,0.246,4349.3,4348.6,0.3005]
[1757525620630,0.295,4349.7,4348.6,0.3005]
[1757525620828,33.4,4350.3,4349.3,0.3005]
[1757525621031,0.295,4350.9,4349.8,0.3005]
[1757525622831,3.2078,4350.6,4349.8,0.3005]
[1757525623138,0.295,4350.9,4349.8,0.3005]
[1757525623332,0.246,4351.0,4349.9,0.3005]
[1757525623534,0.246,4351.0,4350.2,3.2078]
[1757525623734,0.246,4351.0,4350.3,0.3005]
[1757525625331,3.2078,4351.1,4351.0,0.4269]
[1757525625533,0.4141,4351.5,4351.0,0.3005]
[1757525625730,0.295,4351.3,4350.3,0.246]
[1757525625936,3.3269,4351.0,4350.4,7.4]
[1757525626240,0.295,4350.8,4350.4,7.4]
[1757525626536,0.246,4350.9,4350.4,7.4]
[1757525626537,0.4141,4350.5,4350.4,7.4]
[1757525626731,0.295,4350.5,4350.4,7.4]
[1757525626930,0.295,4350.5,4350.4,0.3005]
[1757525627332,0.4141,4350.5,4349.8,0.3005]
[1757525627534,0.4141,4350.5,4349.9,7.4]
[1757525627727,3.3269,4351.0,4350.0,0.4269]
[1757525627938,0.246,4350.9,4350.1,0.3005]
[1757525629029,3.3269,4351.0,4350.1,0.3005]
[1757525629230,0.246,4350.9,4350.2,0.3005]
[1757525629429,3.3269,4351.5,4350.2,0.3005]
[1757525629430,3.2078,4351.5,4350.7,0.3005]
[1757525629735,3.2078,4351.5,4350.8,0.3005]
[1757525630331,3.8679,4352.0,4350.8,0.3005]
[1757525630649,3.6219,4352.0,4350.8,0.3005]
[1757525630937,3.5028,4352.0,4351.2,0.3005]
[1757525631638,0.295,4352.4,4351.2,0.3005]
[1757525631838,0.541,4352.4,4351.2,0.3005]
[1757525632035,3.3269,4352.5,4351.1,3.4538]
[1757525632036,3.2078,4352.5,4351.7,0.3005]
[1757525632239,3.2078,4352.5,4351.9,0.3005]
[1757525632434,3.2078,4352.5,4352.1,0.3005]
[1757525632636,0.295,4352.8,4352.2,0.3005]
[1757525632837,0.246,4353.0,4352.2,0.3005]
[1757525633135,0.295,4353.3,4352.5,0.1264]
[1757525633334,0.295,4353.3,4352.7,3.2078]
[1757525633532,0.295,4353.4,4352.7,3.5083]
[1757525633732,0.295,4353.4,4352.7,0.3005]
[1757525634036,0.295,4353.4,4352.4,0.246]
[1757525634931,0.295,4353.4,4352.3,7.4]
[1757525635337,0.295,4353.3,4352.3,7.4]
[1757525635839,0.3651,4353.5,4352.3,7.4]
[1757525635840,0.295,4353.4,4352.3,7.4]
[1757525636039,0.295,4353.3,4352.3,7.4]
[1757525636240,0.295,4353.4,4352.3,7.4]
[1757525636442,0.52473,4353.4,4352.3,7.4]
[1757525636635,0.22973,4353.4,4352.3,7.4]
[1757525637138,0.4151,4353.5,4352.5,0.1233]
[1757525637348,0.246,4353.3,4352.6,0.2977]
[1757525638542,0.246,4353.3,4352.5,0.1233]
[1757525638543,0.246,4353.3,4352.7,0.2977]
[1757525638731,0.4151,4353.5,4352.7,0.2977]
[1757525638938,0.296,4353.5,4352.7,0.2977]
[1757525640441,0.4171,4353.5,4352.7,0.2977]
[1757525640640,0.296,4353.5,4352.7,0.2977]
[1757525642138,3.4538,4353.6,4352.7,0.2977]
[1757525643143,0.4171,4353.5,4352.7,0.2977]
[1757525643845,0.296,4352.9,4352.3,7.4]
[1757525644041,0.296,4352.4,4352.3,7.4]
[1757525644539,0.246,4352.8,4352.3,7.6977]
[1757525644736,0.296,4352.9,4352.4,0.2977]
[1757525645035,0.296,4352.9,4352.5,0.1233]
[1757525645238,0.296,4352.9,4352.6,0.2977]
[1757525645735,3.2078,4353.1,4352.5,0.1233]
[1757525645937,3.5038,4353.1,4352.5,0.421]
[1757525646137,0.296,4353.6,4353.0,0.421]
[1757525646342,0.4171,4353.5,4352.7,3.2078]
[1757525646541,0.296,4353.4,4352.7,3.2078]
[1757525646746,0.542,4353.4,4352.7,3.2078]
[1757525647155,0.542,4353.4,4352.8,0.2977]
[1757525647446,3.2078,4353.7,4352.8,0.2977]
[1757525648743,0.296,4353.6,4352.8,0.2977]
[1757525650650,0.296,4353.4,4352.8,0.2977]
[1757525651844,3.2078,4353.7,4353.1,0.02933178]
[1757525652051,3.2078,4353.7,4353.2,0.2977]
[1757525652751,0.296,4353.8,4353.2,0.2977]
[1757525652939,0.3651,4354.0,4353.5,0.02933178]
[1757525653158,0.296,4353.8,4353.6,0.2977]
[1757525653450,0.296,4353.9,4353.6,0.2977]
[1757525653653,0.3651,4354.0,4353.6,0.2977]
[1757525653950,0.296,4353.9,4353.8,0.02933178]
[1757525654944,33.11,4354.4,4353.8,0.02933178]
[1757525654945,33.11,4354.4,4353.9,0.2977]
[1757525655148,0.246,4354.3,4353.9,0.2977]
[1757525655347,0.8372,4354.0,4353.8,0.02933178]
[1757525655956,0.8372,4354.0,4353.3,7.4]
[1757525656142,0.8372,4354.0,4353.9,0.02933178]
[1757525656347,0.296,4353.4,4353.3,7.4]
[1757525656546,0.296,4353.3,4352.7,3.2078]
[1757525656751,0.1211,4353.0,4352.7,3.2078]
[1757525656951,0.296,4352.9,4352.7,3.2078]
[1757525657154,0.296,4352.9,4352.7,3.5055]
[1757525657348,0.1211,4353.0,4352.7,3.5055]
[1757525657550,0.1211,4353.0,4352.7,3.2078]
[1757525657947,0.296,4353.0,4352.7,3.2078]
[1757525658145,0.296,4353.0,4352.8,0.2977]
[1757525658546,0.296,4353.0,4352.7,3.2078]
[1757525658851,3.5038,4353.4,4352.8,0.2977]
[1757525662254,0.59056927,4353.3,4352.8,0.2977]
[1757525662460,3.5038,4353.4,4352.8,0.2977]
[1757525662652,0.59049791,4353.3,4352.7,3.2078]
[1757525662852,0.2072,4352.9,4352.8,0.7058]
[1757525663259,0.296,4353.3,4352.9,0.2977]
[1757525663461,0.542,4353.5,4353.3,0.2977]
[1757525663659,0.2072,4353.4,4353.3,0.7058]
[1757525663860,0.5032,4353.4,4353.3,0.7058]
[1757525664063,0.7161,4353.4,4353.3,0.7058]
[1757525664756,0.7161,4353.4,4353.0,7.821]
[1757525665062,0.7161,4353.1,4353.0,7.4]
[1757525665364,0.7161,4353.1,4353.0,7.9034]
[1757525665749,0.7161,4353.1,4353.0,0.5034]
[1757525665955,0.296,4353.0,4352.7,3.2078]
[1757525666165,0.7161,4353.0,4352.9,0.5034]
[1757525666655,0.2072,4353.0,4352.9,0.7058]
[1757525666857,0.6963,4353.5,4353.4,0.5399]
[1757525667055,0.6963,4353.5,4353.4,0.7499]
[1757525667650,3.3289,4354.0,4353.6,0.3259]
[1757525667850,0.5075,4354.0,4353.9,0.5399]
[1757525668255,0.198,4354.0,4353.9,0.7499]
[1757525668462,0.3095,4354.3,4354.0,0.3259]
[1757525668663,0.198,4354.4,4354.3,0.5359]
[1757525668958,0.198,4354.4,4354.3,0.7499]
[1757525669159,0.7098,4354.4,4354.3,0.3259]
[1757525669460,0.7098,4353.6,4353.5,0.214]
[1757525669657,0.4003,4353.6,4353.3,3.2078]
[1757525669860,0.7098,4353.4,4352.8,11.1797]
[1757525670262,0.7098,4353.4,4353.3,0.214]
[1757525670465,0.7098,4353.4,4353.3,0.7499]
[1757525670668,0.198,4353.4,4353.3,0.7499]
[1757525671258,3.5173,4353.8,4353.3,0.7499]
[1757525671459,0.3095,4353.7,4353.4,0.3259]
[1757525671661,0.246,4354.0,4353.7,0.7499]
[1757525671860,0.246,4354.0,4353.8,0.3259]
[1757525672063,0.5075,4353.9,4353.8,0.5399]
[1757525672554,0.198,4353.9,4353.8,0.7499]
[1757525672759,0.246,4354.0,4353.8,0.3259]
[1757525672954,0.246,4354.0,4353.5,0.1177]
[1757525673154,0.246,4354.0,4353.4,3.2078]
[1757525673155,0.3755,4354.0,4353.4,3.2078]
[1757525673359,0.246,4354.0,4353.6,0.3259]
[1757525673560,0.3095,4353.9,4353.5,0.1177]
[1757525674366,0.246,4354.0,4353.6,0.3259]
[1757525674668,0.3095,4353.9,4353.6,0.3259]
[1757525674870,0.3095,4353.9,4353.4,3.2078]
[1757525675169,0.3755,4354.0,4353.4,3.2078]
[1757525675359,0.3095,4353.8,4353.4,3.2078]
[1757525675564,0.5555,4354.0,4353.6,0.3259]
[1757525675869,0.246,4354.0,4353.6,0.3259]
[1757525676663,0.3095,4354.4,4353.6,0.3259]
[1757525676857,33.2091,4355.0,4353.5,0.1177]
[1757525676858,0.245,4354.8,4354.1,0.3259]
[1757525678267,0.245,4354.8,4354.2,0.3259]
[1757525679063,0.3095,4354.9,4354.5,0.1177]
[1757525679363,3.2078,4355.2,4354.6,0.3259]
[1757525679562,3.2078,4355.2,4355.1,0.3259]
[1757525679964,3.5173,4355.2,4355.1,0.3259]
[1757525680269,0.3095,4355.6,4355.1,0.3259]
[1757525680663,0.3095,4355.6,4355.0,0.1177]
[1757525680868,3.2078,4355.9,4355.1,0.3259]
[1757525681065,0.684,4356.0,4355.1,0.3259]
[1757525681772,0.5545,4356.0,4355.1,0.3259]
[1757525682367,0.684,4356.0,4355.1,0.3259]
[1757525682562,0.3745,4356.0,4355.1,0.5709]
[1757525682963,0.3095,4355.8,4355.1,0.5709]
[1757525683570,3.2078,4355.9,4355.1,0.5709]
[1757525683772,0.3745,4356.0,4355.2,7.4]
[1757525684080,0.3095,4355.9,4355.3,0.3259]
[1757525684873,0.3095,4356.3,4355.3,0.3259]
[1757525685074,0.3095,4356.3,4355.2,7.645]
[1757525685075,0.3095,4356.3,4355.6,0.3259]
[1757525686175,0.3095,4356.3,4355.4,3.2078]
[1757525686478,3.2078,4356.4,4355.4,3.2078]
[1757525686867,0.3095,4356.3,4355.4,3.2078]
[1757525687068,3.2078,4356.4,4355.4,3.2078]
[1757525687274,0.3095,4356.3,4355.4,3.2078]
[1757525687474,3.2078,4356.4,4355.4,3.2078]
[1757525687874,3.43737,4356.4,4355.4,3.2078]
[1757525688077,0.3095,4356.3,4355.6,0.3259]
[1757525690275,0.198,4355.7,4355.6,0.7499]
[1757525691376,0.3095,4355.9,4355.7,0.3259]
[1757525691675,0.5075,4356.3,4356.2,0.7499]
[1757525692275,3.2078,4356.4,4356.2,0.7499]
[1757525692477,3.2078,4356.4,4356.3,0.3259]
[1757525692676,0.245,4356.6,4356.3,0.7499]
[1757525692873,0.5545,4356.6,4356.4,0.3259]
[1757525693074,0.198,4356.5,4356.4,0.7499]
[1757525693267,0.245,4356.8,4356.4,0.7499]
[1757525693575,0.6453,4356.8,4356.7,0.214]
[1757525693876,0.9548,4356.8,4356.7,0.214]
[1757525694073,0.7098,4356.5,4356.4,0.214]
[1757525694272,0.198,4356.2,4356.1,0.5399]
[1757525694473,0.5075,4356.2,4356.1,0.5399]
[1757525694680,0.5075,4356.2,4356.1,0.7499]
[1757525695077,0.7098,4356.2,4356.1,0.7499]
[1757525695283,0.7098,4356.2,4355.6,0.3259]
[1757525695768,0.7098,4356.2,4356.1,0.5399]
[1757525695968,0.7098,4356.2,4356.1,0.214]
[1757525696379,0.3095,4356.1,4355.6,0.3259]
[1757525696578,0.198,4355.7,4355.6,0.7499]
[1757525696784,0.5075,4355.7,4355.6,0.7499]
[1757525696969,0.198,4355.7,4355.6,0.7499]
[1757525697480,0.4534,4356.3,4356.2,0.2067]
[1757525697677,0.9647,4356.3,4356.2,0.2067]
[1757525697979,0.9647,4356.3,4356.2,0.5025]
[1757525698782,0.9647,4356.3,4355.8,0.2958]
[1757525698983,0.4094,4355.7,4355.6,0.5025]
[1757525699187,0.4094,4355.3,4355.2,7.6067]
[1757525699483,0.7197,4355.3,4355.2,7.9025]
[1757525700383,0.4094,4355.0,4354.9,0.5025]
[1757525700576,0.2084,4355.0,4354.9,0.7051]
[1757525701077,0.5187,4355.4,4355.3,0.7051]
[1757525701276,0.2084,4355.4,4355.3,0.7051]
[1757525701472,0.223,4355.7,4355.3,0.4093]
[1757525701677,0.223,4355.7,4355.6,0.4093]
[1757525701985,0.9427,4355.7,4355.6,0.7051]
[1757525702782,0.6324,4355.7,4355.6,0.7051]
[1757525703173,0.9427,4355.7,4355.6,0.7051]
[1757525704485,0.9427,4355.7,4355.6,0.2067]
[1757525704684,0.9427,4355.7,4355.6,0.5025]
[1757525704884,0.9427,4355.7,4355.6,0.2067]
[1757525705382,0.6324,4355.7,4355.0,0.1275]
[1757525705584,0.2084,4355.2,4355.1,0.7051]
[1757525705783,0.7197,4355.2,4355.1,0.7051]
[1757525706286,0.5187,4355.6,4355.5,0.2067]
[1757525706474,0.5187,4355.6,4355.5,0.7051]
[1757525707379,0.7197,4355.6,4355.5,0.7051]
[1757525709378,0.7197,4355.6,4355.0,0.1275]
[1757525709379,0.7197,4355.6,4355.0,0.4233]
[1757525709584,0.5187,4355.1,4355.0,0.8326]
[1757525709781,0.2084,4355.1,4355.0,0.8326]
[1757525710173,0.5187,4355.4,4355.3,0.4093]
[1757525710379,0.2084,4355.4,4355.3,0.7051]
[1757525711585,0.223,4355.7,4355.3,0.7051]
[1757525711783,0.5333,4355.7,4355.4,0.2958]
[1757525711974,0.3103,4356.1,4355.6,0.7051]
[1757525712181,0.3103,4356.1,4355.5,0.1275]
[1757525712182,0.3103,4356.5,4356.1,0.7051]
[1757525712480,0.9647,4356.9,4356.8,0.2067]
[1757525712983,0.3103,4356.8,4356.1,3.2078]
[1757525713189,0.3103,4356.8,4356.2,0.2958]
[1757525713582,0.3103,4356.8,4356.1,3.2078]
[1757525713583,0.4094,4356.8,4356.7,0.7051]
[1757525713782,0.6544,4356.8,4356.7,0.7051]
[1757525713983,0.2084,4356.8,4356.7,0.7051]
[1757525715084,0.2084,4356.8,4356.7,0.7344411]
[1757525715284,0.7197,4356.8,4356.7,0.7344411]
[1757525715892,0.9647,4356.8,4356.7,0.0293411]
[1757525717492,0.7197,4356.8,4356.7,0.7344411]
[1757525717788,0.2084,4356.9,4356.8,0.2958]
[1757525717986,0.4094,4356.9,4356.8,0.7051]
[1757525718291,0.7197,4356.9,4356.8,0.0293411]
[1757525718487,0.1196,4356.5,4355.6,3.2078]
[1757525718686,3.2078,4356.0,4355.1,0.2958]
[1757525718879,3.2078,4355.2,4355.0,0.1275]
[1757525719081,0.245,4355.1,4354.0,0.1275]
[1757525719583,0.245,4355.1,4354.5,0.4233]
[1757525719786,2.2078,4355.2,4354.6,0.2958]
[1757525719980,2.2078,4355.2,4355.1,0.2958]
[1757525719981,2.4528,4355.2,4355.1,0.2958]
[1757525720183,2.2078,4355.2,4355.1,0.2958]
[1757525721680,3.2078,4355.8,4355.5,0.1275]
[1757525721886,0.245,4355.7,4355.6,0.2958]
[1757525723486,3.2078,4356.3,4355.6,0.2958]
[1757525723795,0.245,4356.2,4355.6,0.2958]
[1757525723997,0.245,4356.2,4356.1,0.2958]
[1757525726392,3.2078,4356.3,4356.0,0.1275]
[1757525726587,0.245,4356.2,4356.1,0.2958]
[1757525726990,3.4528,4356.3,4356.1,0.2958]
[1757525727190,3.4528,4356.3,4356.0,0.1275]
[1757525727393,3.4528,4356.3,4356.1,0.3086]
[1757525728203,3.4528,4356.3,4355.6,0.3086]
[1757525728490,3.4528,4356.3,4355.6,0.5195]
[1757525728696,3.4528,4356.3,4355.7,0.3086]
[1757525728888,3.4528,4356.3,4355.7,0.5195]
[1757525729389,3.4528,4356.3,4356.2,0.5195]
[1757525729997,3.4528,4356.3,4356.2,0.3086]
[1757525730190,3.4528,4356.3,4356.2,0.5195]
[1757525730593,3.4528,4356.3,4356.2,0.7351]
[1757525730998,3.4528,4356.3,4356.2,0.5195]
[1757525731200,3.4528,4356.3,4356.0,0.1249]
[1757525731398,3.4528,4356.3,4356.1,0.3086]
[1757525731599,3.4528,4356.3,4356.0,0.1249]
[1757525731800,3.4528,4356.3,4355.7,0.3086]
[1757525733298,3.2078,4355.8,4355.7,0.3086]
[1757525733498,3.4528,4355.8,4355.1,0.3086]
[1757525733700,3.4528,4355.8,4354.7,3.2078]
[1757525733701,3.2078,4355.3,4354.7,3.2078]
[1757525733904,0.245,4355.2,4354.6,0.3086]
[1757525734402,0.245,4355.1,4355.0,0.3358]
[1757525734598,0.245,4355.1,4355.0,0.6444]
[1757525734805,0.245,4355.1,4355.0,0.86]
[1757525735403,0.245,4355.1,4355.0,0.6491]
[1757525735603,0.245,4355.1,4355.0,0.86]
[1757525735796,0.245,4355.1,4355.0,0.1249]
[1757525735998,0.245,4355.1,4354.6,3.2078]
[1757525736300,0.245,4355.1,4354.6,3.5164]
[1757525736501,0.245,4355.1,4354.7,0.3086]
[1757525737597,0.245,4355.1,4354.6,3.2078]
[1757525738005,3.2078,4355.3,4355.1,0.3086]
[1757525738201,0.245,4355.2,4355.1,0.3086]
[1757525739697,0.245,4355.2,4354.0,3.3327]
[1757525739902,3.2078,4354.8,4354.6,0.3086]
[1757525740107,0.244,4354.7,4354.6,0.3086]
[1757525740608,0.244,4354.7,4354.6,0.5195]
[1757525741407,0.244,4354.7,4354.6,0.7351]
[1757525741708,3.4518,4354.8,4354.7,0.3086]
[1757525741906,3.4518,4354.8,4354.7,0.7351]
[1757525742298,0.244,4354.8,4354.7,0.7351]
[1757525742908,0.244,4354.8,4354.7,0.3086]
[1757525743311,3.2078,4355.6,4355.5,0.4335]
[1757525743512,3.4518,4355.6,4355.5,0.4335]
[1757525745206,3.4518,4355.6,4355.5,0.6444]
[1757525745606,3.4518,4355.6,4355.5,0.86]
[1757525748214,3.2078,4355.6,4355.5,0.86]
[1757525748413,0.244,4355.6,4355.5,0.86]
[1757525749819,33.069,4356.2,4356.1,0.7351]
[1757525750020,33.313,4356.2,4356.1,0.7351]
[1757525751823,33.313,4356.2,4356.1,0.3086]
[1757525752018,0.244,4356.2,4356.1,0.3086]
[1757525752924,3.2078,4356.3,4356.2,0.2156]
[1757525753125,3.2078,4357.3,4357.2,0.7351]
[1757525753424,0.244,4358.1,4357.6,0.3086]
[1757525753624,0.298,4357.8,4357.2,0.3086]
[1757525753821,0.244,4357.7,4357.1,10.6078]